Cogmind - Beta 11.1 @@@ ROGUE MODE // 2022.05.05 @ 22:14:18 Player: the cat Result: Destroyed by Enhanced Grunt with Neutron Cannon Performance ------------- Evolutions (3) 1500 Regions Visited (10) 2000 Robots Destroyed (175) 875 Value Destroyed (5163) 5163 Prototype IDs (216) 4320 Alien Tech Used (0) 0 Bonus (3714) 3714 TOTAL SCORE: 17572 Bonus ------- High Alert Combat Kills 854 Follower Combat Kills 70 Met Data Miner 300 Used Data Conduit 3000 Friendly Fire -510 Cogmind --------- Core Integrity 0/700 Matter 254/300 Energy 234/240 System Corruption 20% Temperature Cool (0) Movement Treading (465) Ox4 Location -7/Data Miner Parts ------- > --- POWER (1) -------- Nuclear Core > --- PROPULSION (4) --- Advanced Treads > --- UTILITY (6) ------ Huge Storage Unit Improved Targeting Computer > --- WEAPON (2) ------- Mini Grenade Launcher Heavy Flail > --- INVENTORY (25) --- Reinforced Deuterium Engine Improved Cooling System Coolant Injector High-capacity Matter Pod (130) Improved Sensor Array Makeshift Salvage Targeting Computer System Mapper Deep Network Scanner Ghost Barrier Long-range Tractor Beam Plasma Cannon Heavy Plasma Cannon Enhanced Autogun Enhanced Autogun Precision Assault Rifle Precision Assault Rifle Magnetic Acceleration Cannon Advanced EMP Blaster Peak State ------------ > --- POWER ------------ Nuclear Core > --- PROPULSION ------- Advanced Treads Improved Medium Treads Improved Medium Treads Improved Medium Treads > --- UTILITY ---------- Huge Storage Unit Improved Signal Interpreter Improved Targeting Computer Kinecellerator Improved Light Armor Plating Layered Medium Armor Plating > --- WEAPON ----------- Enhanced Autogun Precision Assault Rifle > --- INVENTORY -------- Reinforced Deuterium Engine Wheel Wheel Compact Wheel Improved Cooling System Coolant Injector High-capacity Matter Pod Improved Sensor Array Makeshift Salvage Targeting Computer Improved Medium Armor Plating Medium Reactive Plating System Mapper Deep Network Scanner Ghost Barrier Long-range Tractor Beam Plasma Cannon Heavy Plasma Cannon Enhanced Autogun Enhanced Autogun Precision Assault Rifle Precision Assault Rifle Magnetic Acceleration Cannon Advanced EMP Blaster Mini Grenade Launcher Heavy Flail [Rating: 58] Favorites ----------- Power Nuclear Core Engine Improved Ion Engine Power Core Nuclear Core Propulsion Advanced Treads Treads Advanced Treads Leg Aluminum Leg Wheel Wheel Utility Huge Storage Unit Device Improved Heat Sink Storage Huge Storage Unit Processor Improved Signal Interpreter Protection Layered Light Armor Plating Weapon Enhanced Autogun Energy Gun Beam Rifle Energy Cannon Heavy Particle Cannon Ballistic Gun Enhanced Autogun Ballistic Cannon Advanced Assault Cannon Launcher Mini Grenade Launcher Impact Weapon Heavy Flail Build | -11 -10 -9 -9 -8 -7 -7 -7 -7 -7 -7 ------- Run | Scr Mat Mat Min Mat Fac Was Fac Low Low Dat Slots Evolved 6 | . . 2 . 2 2 . . . . . Power . | . . . . . . . . . . . Propulsion 2 | . . 1 . 1 . . . . . . Utility 4 | . . 1 . 1 2 . . . . . Weapon . | . . . . . . . . . . . Parts Attached 226 | . 2 17 5 52 12 14 81 3 23 17 Power 12 | . . 2 . 4 . . 5 . 1 . Engine 9 | . . 2 . 3 . . 4 . . . Core 3 | . . . . 1 . . 1 . 1 . Reactor . | . . . . . . . . . . . Propulsion 55 | . . 5 1 13 . 8 15 1 6 6 Treads 35 | . . 4 1 11 . 8 3 . 5 3 Leg 2 | . . . . . . . 2 . . . Wheel 18 | . . 1 . 2 . . 10 1 1 3 Hover . | . . . . . . . . . . . Flight . | . . . . . . . . . . . Utility 78 | . 1 5 . 17 7 1 31 2 11 3 Device 31 | . . . . 5 6 . 14 1 4 1 Storage 6 | . 1 . . 3 . . 2 . . . Processor 6 | . . . . 1 1 1 1 1 1 . Hackware . | . . . . . . . . . . . Protection 35 | . . 5 . 8 . . 14 . 6 2 Artifact . | . . . . . . . . . . . Weapon 81 | . 1 5 4 18 5 5 30 . 5 8 Energy Gun 1 | . . 1 . . . . . . . . Energy Cannon 16 | . . 1 . 1 2 1 7 . 2 2 Ballistic Gun 40 | . 1 3 2 12 1 . 17 . 2 2 Ballistic Cannon 3 | . . . . . . . 2 . . 1 Launcher 16 | . . . 2 5 . 4 3 . 1 1 Special Weapon . | . . . . . . . . . . . Impact Weapon 5 | . . . . . 2 . 1 . . 2 Slashing Weapon . | . . . . . . . . . . . Piercing Weapon . | . . . . . . . . . . . Special Melee Weapon . | . . . . . . . . . . . Unidentified Prototypes 6 | . . 1 . 2 . . 3 . . . Corrupted Parts 3 | . . . . . . . 3 . . . System Corruption 8 | . . . . . . . 8 . . . Parts Lost 69 | . . 8 2 19 . 9 14 . 3 14 Power 6 | . . 2 . 1 . 1 1 . 1 . Propulsion 28 | . . 2 1 4 . 6 8 . 1 6 Utility 22 | . . 3 1 7 . . 4 . 1 6 Weapon 13 | . . 1 . 7 . 2 1 . . 2 Highest Loss Streak 16 | . . 3 1 16 . 9 3 . 2 14 To Critical Strikes 2 | . . . . 1 . 1 . . . . Average Slot Usage (%) 89 | . 85 84 89 95 98 48 80 89 96 88 Engine 4 | . 14 8 11 6 . . 5 . . . Core 3 | . . . . 2 7 2 . 7 6 7 Treads 17 | . . 18 21 31 30 19 11 . 9 17 Leg 1 | . 28 2 . . . . . . . . Wheel 8 | . . 9 11 3 . . 6 20 17 11 Device 9 | . . . . 9 14 7 14 15 7 6 Storage 8 | . 14 11 11 9 7 7 6 7 7 7 Processor 6 | . . . . . 6 7 5 15 15 14 Protection 12 | . . 11 12 14 15 . 10 7 14 14 Energy Cannon 4 | . . 3 . 4 9 . 1 . 9 . Ballistic Gun 10 | . 28 18 20 13 5 . 10 15 5 3 Naked Turns . | . . . . . . . . . . . Heaviest Build 132 | 12 53 60 58 105 115 112 132 101 113 114 Greatest Support 112 | 20 20 40 16 84 84 92 110 54 54 112 Greatest Overweight (x) 41 | . 2 3 3 3 1 1 41 2 4 9 Average Overweight (x) 1 | . . 2 3 . 1 . 2 1 2 2 Largest Inventory Capacity 25 | . 20 20 20 25 25 25 25 25 25 25 Average Capacity 23 | . 14 20 20 20 25 25 24 25 25 25 Most Carried 25 | . 8 20 19 21 25 25 25 25 25 25 Average Carried 21 | . 7 12 18 18 23 20 22 24 24 24 Final Capacity 25 | 8 20 20 20 25 25 25 25 25 25 25 Final Carried 25 | 6 8 17 18 21 25 18 25 25 25 18 Class Distribution -------------------- 59% | Scavenger-Mutant 40% | Mutant Dominant Class ---------------- Mutant | -10/Materials Mutant | -9/Materials Mutant | -9/Mines Scavenger-Mutant | -8/Materials Mutant | -7/Factory Mutant | -7/Waste Scavenger-Mutant | -7/Factory Scavenger-Mutant | -7/Lower Caves Scavenger-Mutant | -7/Lower Caves Scavenger-Mutant | -7/Data Miner Resources | -11 -10 -9 -9 -8 -7 -7 -7 -7 -7 -7 ----------- Run | Scr Mat Mat Min Mat Fac Was Fac Low Low Dat Matter Collected 6570 | 200 115 244 99 1246 262 415 2928 57 914 90 Remotely 2066 | . . . . 418 . . 1648 . . . Salvage Created 7376 | . 296 753 109 1500 355 851 3146 . 346 20 Parts 381 | . 15 47 21 98 14 5 146 . 29 6 Haulers Intercepted 13 | . 1 3 . 5 2 . 2 . . . Recyclers Shooed 3 | . . . . 2 . . 1 . . . Parts Field Recycled . | . . . . . . . . . . . Retrieved Matter . | . . . . . . . . . . . Parts Self-Destructed 14 | . . . . . . . . . 14 . Prevented 3 | . . . . . . . . . 3 . Kills | -11 -10 -9 -9 -8 -7 -7 -7 -7 -7 -7 ------- Run | Scr Mat Mat Min Mat Fac Was Fac Low Low Dat Combat Hostiles Destroyed 124 | . 6 15 11 31 5 3 45 . 8 . Melee 1 | . . . . 1 . . . . . . Guns 56 | . 6 11 6 11 . . 19 . 3 . Cannons 31 | . . 3 . 7 5 . 15 . 1 . AOE 32 | . . . 5 12 . 3 8 . 4 . Classes Destroyed 19 | . 2 5 . 5 1 1 4 . 1 . Worker 14 | . . 1 . 2 . . 11 . . . Builder 9 | . . . . 2 . . 7 . . . Hauler 13 | . 1 3 . 5 2 . 2 . . . Recycler 8 | . . . . 2 . . 6 . . . Carrier 1 | . . . . . . . 1 . . . Watcher 7 | . . 1 . 2 . . 4 . . . Swarmer 30 | . . 4 11 11 . . . . 4 . Grunt 51 | . 6 7 . 9 2 . 24 . 3 . Brawler 2 | . . . . . . . 2 . . . Duelist 3 | . . 1 . 1 . . 1 . . . Protector 1 | . . . . . . . 1 . . . Sentry 10 | . . 3 . 5 1 . 1 . . . Demolisher 1 | . . . . . . . 1 . . . Specialist 6 | . . . . 2 . . 4 . . . Hunter 10 | . . . . 2 1 . 6 . 1 . Programmer 5 | . . . . . 1 . 4 . . . Heavy 2 | . . . . 1 . . 1 . . . Behemoth 1 | . . . . . . . . . 1 . Compactor 3 | . . . . . . 3 . . . . Thug 1 | . . . . . . 1 . . . . Best Kill Streak 15 | . 2 8 4 13 2 2 15 . 4 1 Combat Bots Only 13 | . 2 7 4 13 2 2 7 . 4 . Max Kills in Single Turn 6 | . 1 2 3 6 1 2 5 . 1 1 Gunslinging . | . . . . . . . . . . . Exploded 6 | . . . 3 6 . 1 3 . 1 . Melee 1 | . . . . 1 . . . . . . Uniques/NPCs Destroyed 1 | . . . . . . . . . . 1 Data Miner (-7/Data Miner) Combat | -11 -10 -9 -9 -8 -7 -7 -7 -7 -7 -7 -------- Run | Scr Mat Mat Min Mat Fac Was Fac Low Low Dat Damage Taken 13461 | . 262 1260 239 3506 284 690 4542 . 841 1837 Core 1256 | . 75 108 32 340 . 231 250 . 77 143 Absorbed by Shields 282 | . . . . . 66 . 216 . . . Core Remaining (%) 68 | 100 70 . 65 38 . . . . . . Volleys Fired 456 | . 25 57 17 115 23 22 159 . 38 . Largest 2 | . 2 2 2 2 2 2 2 . 2 . Hottest 150 | . 40 91 43 93 150 78 150 . 146 . Shots Fired 847 | . 50 114 26 211 42 28 302 2 72 . Gun 551 | . 50 98 22 162 8 . 156 2 53 . Cannon 243 | . . 16 . 41 34 4 133 . 15 . Launcher 53 | . . . 4 8 . 24 13 . 4 . Special . | . . . . . . . . . . . Kinetic 629 | . 50 98 22 162 8 . 234 2 53 . Thermal 159 | . . 16 . 41 34 4 55 . 9 . Explosive 40 | . . . 4 8 . 24 . . 4 . Electromagnetic 19 | . . . . . . . 13 . 6 . Robot Hit Streak 18 | . 6 9 3 11 18 9 9 . 8 . Robot Miss Streak 6 | . 2 6 4 4 1 2 5 . 2 . Penetration Max 1 | . . . . 1 . . 1 . . . Secondary Targets 10 | . 1 4 1 2 . . 2 . . . Max Gunslinging Chain 1 | . 1 1 1 1 . . 1 . . . Shots Hit Robots 550 | . 36 66 11 133 33 20 204 . 45 2 Core Hits 312 | . 16 28 11 67 11 17 144 . 17 1 Critical Kills 3 | . . 2 . . . . 1 . . . Critical Parts Destroyed 2 | . . . . . . . 1 . 1 . Critical Strikes 13 | . . 2 . . . . 10 . 1 . Meltdown 1 | . . 1 . . . . . . . . Destroy 5 | . . 1 . . . . 3 . 1 . Blast 7 | . . . . . . . 7 . . . Melee Attacks 7 | . . . . . 2 . 3 . . 2 Impact 7 | . . . . . 2 . 3 . . 2 Slashing . | . . . . . . . . . . . Piercing . | . . . . . . . . . . . Sneak Attacks 1 | . . . . . . . . . . 1 Combat Hostiles . | . . . . . . . . . . . Follow-up Attacks . | . . . . . . . . . . . Damage Inflicted 17748 | . 417 1013 488 3699 839 3189 6675 . 1230 198 Guns 5915 | . 402 741 150 1784 134 . 2037 . 667 . Cannons 4401 | . . 266 . 574 674 100 2626 . 161 . Explosions 7047 | . . . 338 1242 . 3089 2011 . 367 . Melee 198 | . . . . . . . . . . 198 Ramming 187 | . 15 6 . 99 31 . 1 . 35 . Kinetic 7366 | . 402 741 150 1784 134 . 3488 . 667 . Thermal 3942 | . . 266 . 934 674 100 1905 . 63 . Explosive 4676 | . . . 338 882 . 3089 . . 367 . Electromagnetic 1379 | . . . . . . . 1281 . 98 . Impact 198 | . . . . . . . . . . 198 Slashing . | . . . . . . . . . . . Piercing . | . . . . . . . . . . . Highest Corruption 24 | . . . . . 1 14 24 23 23 20 Average Corruption 18 | . . . . . 1 5 18 23 20 20 Corruption Purged 5 | . . . . . . . 2 . 3 . Corruption Blocked 8 | . . . . . . 8 . . . . Effects 231 | . . . . . 2 5 97 17 95 15 Message Errors 51 | . . . . . . 3 13 3 27 5 Matter Fused 61 | . . . . . 1 . 30 5 23 2 Heat Flow Errors 21 | . . . . . . . 13 3 5 . Energy Discharges 32 | . . . . . . 1 11 2 11 7 Parts Rejected 5 | . . . . . . 1 4 . . . Data Loss (minor) 20 | . . . . . . . 13 1 6 . Data Loss (major) 11 | . . . . . . . 2 1 8 . Misfires 13 | . . . . . . . 3 2 8 . Alerts 4 | . . . . . 1 . 1 . 2 . Misdirections 4 | . . . . . . . 2 . 1 1 Weapon Failures 9 | . . . . . . . 5 . 4 . Overload Shots . | . . . . . . . . . . . Overflow Damage 241 | . . . 11 115 17 . 65 . 33 . Projectiles 35 | . . . . . 17 . 18 . . . Explosions 195 | . . . 11 104 . . 47 . 33 . Melee 11 | . . . . 11 . . . . . . Knockbacks 12 | . . . . . . . 12 . . . Impact . | . . . . . . . . . . . Kinetic 12 | . . . . . . . 12 . . . Secondary . | . . . . . . . . . . . Self-Inflicted Damage 450 | . . . . 43 . 267 102 . 38 . Shots 13 | . . . . 1 . 7 4 . 1 . Rammed 22 | . . 1 . 6 2 . 1 . 12 . Targets Rammed 29 | . 3 2 . 9 2 . 1 . 12 . Kicked 3 | . 3 . . . . . . . . . Crushed 4 | . . 1 . 3 . . . . . . Highest Temperature 441 | . 48 341 . 330 40 . 441 177 366 . Average Temperature 114 | . 11 115 . 111 18 . 142 86 91 . Received Heat Transfer 2649 | . 168 459 . 522 43 . 1349 . 96 12 Effects 9 | . . 2 . . . . 7 . . . Shutdowns 3 | . . . . . . . 3 . . . Energy Bleed 2 | . . 2 . . . . . . . . Matter Decay 2 | . . . . . . . 2 . . . Short Circuit 2 | . . . . . . . 2 . . . Siege Activations . | . . . . . . . . . . . Robots Corrupted 3 | . . . . . . . 3 . . . Combat Hostiles 2 | . . . . . . . 2 . . . Parts Fried 7 | . . . . 2 . . 4 . 1 . Impact Corruptions 1 | . . . . 1 . . . . . . Robots Melted 2 | . . 1 . . . . 1 . . . Combat Hostiles 2 | . . 1 . . . . 1 . . . Parts Melted 13 | . . 4 . 2 2 . 5 . . . Heat Transferred 5616 | . . 481 . 1336 962 148 2589 . 100 . Parts Sabotaged . | . . . . . . . . . . . Parts Stolen . | . . . . . . . . . . . Parts Stripped . | . . . . . . . . . . . Power Chain Reactions 12 | . . . . . . . 12 . . . Missiles Intercepted . | . . . . . . . . . . . Alert | -11 -10 -9 -9 -8 -7 -7 -7 -7 -7 -7 ------- Run | Scr Mat Mat Min Mat Fac Was Fac Low Low Dat Peak Influence 1237 | . 182 232 237 676 389 141 1237 . . . Initial 307 | . . 76 64 83 307 80 44 . . . Average 335 | . 108 111 150 376 273 85 497 . . . Maximum Alert Level 4 | . . 1 1 2 1 . 4 . . . Low Security (%) 43 | . 100 93 84 14 14 100 43 . . . Level 1 28 | . . 6 15 41 85 . 5 . . . Level 2 15 | . . . . 44 . . 8 . . . Level 3 9 | . . . . . . . 30 . . . Level 4 3 | . . . . . . . 12 . . . Level 5 . | . . . . . . . . . . . High Security . | . . . . . . . . . . . Max Security . | . . . . . . . . . . . Squads Dispatched 30 | . 1 . . 4 3 . 22 . . . Investigation 2 | . . . . . . . 2 . . . Extermination 5 | . . . . . 1 . 4 . . . Reinforcement 15 | . 1 . . 4 2 . 8 . . . Assault 1 | . . . . . . . 1 . . . Garrison 7 | . . . . . . . 7 . . . Intercept . | . . . . . . . . . . . Searches Triggered . | . . . . . . . . . . . Construction Impeded 3 | . . . . . . . 3 . . . Haulers Reinforced 1 | . . . . . . . 1 . . . Active Scanning Responses . | . . . . . . . . . . . Cargo Convoy Interrupts 1 | . . . . . . . 1 . . . Stealth | -11 -10 -9 -9 -8 -7 -7 -7 -7 -7 -7 --------- Run | Scr Mat Mat Min Mat Fac Was Fac Low Low Dat Distress Signals 13 | . 1 2 . 6 . . 4 . . . Communications Jammed . | . . . . . . . . . . . Distress Signals . | . . . . . . . . . . . Times Spotted 201 | . 12 19 11 55 8 5 78 . 9 4 Peak Tracking Total 11 | . 5 5 4 11 2 3 8 . 4 4 Tactical Retreats 7 | . . . . 2 . . 5 . . . Traps | -11 -10 -9 -9 -8 -7 -7 -7 -7 -7 -7 ------- Run | Scr Mat Mat Min Mat Fac Was Fac Low Low Dat Traps Triggered 4 | . . . . . 1 . 2 . 1 . Indirectly . | . . . . . . . . . . . Trap Hack Attempts . | . . . . . . . . . . . Triggered . | . . . . . . . . . . . Disarmed . | . . . . . . . . . . . Reprogrammed . | . . . . . . . . . . . Reused . | . . . . . . . . . . . Traps Extracted . | . . . . . . . . . . . Installed . | . . . . . . . . . . . Triggered 1 | . . . . . . . . . 1 . Machines | -11 -10 -9 -9 -8 -7 -7 -7 -7 -7 -7 ---------- Run | Scr Mat Mat Min Mat Fac Was Fac Low Low Dat Machines Disabled 15 | . . . . 7 4 . 4 . . . Max in Single Turn 3 | . . . . 3 1 . 3 . . . Garrison Access 3 | . . . . 1 1 . 1 . . . Machines Sabotaged . | . . . . . . . . . . . Garrisons Compromised . | . . . . . . . . . . . Overloaded Fab Kills . | . . . . . . . . . . . Hacking | -11 -10 -9 -9 -8 -7 -7 -7 -7 -7 -7 --------- Run | Scr Mat Mat Min Mat Fac Was Fac Low Low Dat Machines Accessed 29 | . 1 5 1 6 5 . 6 . 1 4 Terminals 19 | . 1 5 1 5 3 . 4 . . . Fabricators 2 | . . . . . 1 . 1 . . . Repair Stations . | . . . . . . . . . . . Recycling Units . | . . . . . . . . . . . Scanalyzers . | . . . . . . . . . . . Garrison Access 3 | . . . . 1 1 . 1 . . . Total Hacks 87 | . 1 13 3 14 10 . 17 . 1 28 Successful 54 | . 1 5 . 9 3 . 7 . 1 28 Failed 33 | . . 8 3 5 7 . 10 . . . Catastrophic 5 | . . 2 . 1 . . 2 . . . Database Lockouts . | . . . . . . . . . . . Manual 24 | . . 2 3 9 4 . 6 . . . Terminals 47 | . 1 13 3 13 6 . 11 . . . Fabricators 5 | . . . . . 2 . 3 . . . Repair Stations . | . . . . . . . . . . . Recycling Units . | . . . . . . . . . . . Scanalyzers . | . . . . . . . . . . . Garrison Access 6 | . . . . 1 2 . 3 . . . Terminal Hacks 44 | . 1 4 . 7 1 . 2 . 1 28 Record 11 | . . . . . . . . . . 11 Part Schematic 10 | . . . . 1 . . . . . 9 Robot Schematic 5 | . . . . . . . . . . 5 Robot Analysis 1 | . . . . 1 . . . . . . Prototype ID Bank 4 | . 1 . . . . . . . . 3 Open Door 1 | . . . . . . . . . 1 . Open DSF 1 | . . . . . . . 1 . . . Branch Access Points 3 | . . 1 . 1 . . 1 . . . Recycling Unit Index 1 | . . 1 . . . . . . . . Unreport Threat 1 | . . 1 . . . . . . . . Locate Traps 1 | . . . . . 1 . . . . . Recall Reinforcements 1 | . . . . 1 . . . . . . Hauler Manifests 2 | . . . . 2 . . . . . . Zone Layout 2 | . . 1 . 1 . . . . . . Fabricator Hacks 4 | . . . . . 1 . 3 . . . Network Status 2 | . . . . . 1 . 1 . . . Load Schematic 1 | . . . . . . . 1 . . . Build 1 | . . . . . . . 1 . . . Repair Station Hacks . | . . . . . . . . . . . Recycling Unit Hacks . | . . . . . . . . . . . Scanalyzer . | . . . . . . . . . . . Garrison Access Hacks 3 | . . . . 1 1 . 1 . . . Seal Access 3 | . . . . 1 1 . 1 . . . Unauthorized Hacks 3 | . . 1 . 1 . . 1 . . . Terminals 3 | . . 1 . 1 . . 1 . . . Botnet 3 | . . 1 . 1 . . 1 . . . Fabricators . | . . . . . . . . . . . Repair Stations . | . . . . . . . . . . . Recycling Units . | . . . . . . . . . . . Scanalyzers . | . . . . . . . . . . . Garrison Access . | . . . . . . . . . . . Data Cores Recovered . | . . . . . . . . . . . Used . | . . . . . . . . . . . Hacking Detections 18 | . . 5 1 3 4 . 5 . . . Full Trace Events 1 | . . . . . . . 1 . . . Feedback Events . | . . . . . . . . . . . Feedback Blocked . | . . . . . . . . . . . Robot Schematics Acquired 5 | . . . . . . . . . . 5 Robots Built . | . . . . . . . . . . . Authchips . | . . . . . . . . . . . Time . | . . . . . . . . . . . Total Robot Build Rating . | . . . . . . . . . . . Part Schematics Acquired 10 | . . . . 1 . . . . . 9 Parts Built 1 | . . . . . . . 1 . . . Authchips . | . . . . . . . . . . . Time 51 | . . . . . . . 51 . . . Total Part Build Rating 1 | . . . . . . . 1 . . . Parts Repaired . | . . . . . . . . . . . Time . | . . . . . . . . . . . Parts Recycled . | . . . . . . . . . . . Recycled Matter . | . . . . . . . . . . . Retrieved Matter . | . . . . . . . . . . . Retrieved Components . | . . . . . . . . . . . Parts Scanalyzed . | . . . . . . . . . . . Part Schematics Acquired . | . . . . . . . . . . . Parts Damaged . | . . . . . . . . . . . Bothacking | -11 -10 -9 -9 -8 -7 -7 -7 -7 -7 -7 ------------ Run | Scr Mat Mat Min Mat Fac Was Fac Low Low Dat Used RIF Installer . | . . . . . . . . . . . Robots Hacked . | . . . . . . . . . . . Non-combat . | . . . . . . . . . . . Combat . | . . . . . . . . . . . Robot Hacks Applied . | . . . . . . . . . . . Relay Couplers Released 2 | . . . . . . . 2 . . . Machine Destruction 2 | . . . . . . . 2 . . . Fabnet Peak Effective % . | . . . . . . . . . . . Robots Rewired . | . . . . . . . . . . . Allies Hacked . | . . . . . . . . . . . Hacks Repelled . | . . . . . . . . . . . Allies | -11 -10 -9 -9 -8 -7 -7 -7 -7 -7 -7 -------- Run | Scr Mat Mat Min Mat Fac Was Fac Low Low Dat Total Allies 6 | . . . . . . 1 3 . 2 . Largest Group 3 | . . . . . . 1 3 . 2 . Highest-Rated Group 250 | . . . . . . 31 93 . 250 . Highest-Rated Ally 165 | . . . . . . 31 31 . 165 . Total Orders . | . . . . . . . . . . . Ally Attacks 25 | . . . . . . 10 12 . 3 . Total Damage 498 | . . . . . . 187 230 . 81 . Kills 2 | . . . . . . . 2 . . . Allies Corrupted . | . . . . . . . . . . . Allies Melted . | . . . . . . . . . . . Intel | -11 -10 -9 -9 -8 -7 -7 -7 -7 -7 -7 ------- Run | Scr Mat Mat Min Mat Fac Was Fac Low Low Dat Robot Analysis Total 129 | . . . . 1 . . . . . 128 Derelict Logs Recovered 5 | . . . 3 . . . . . 2 . Drone Launches . | . . . . . . . . . . . Drone Recoveries . | . . . . . . . . . . . Exploration | -11 -10 -9 -9 -8 -7 -7 -7 -7 -7 -7 ------------- Run | Scr Mat Mat Min Mat Fac Was Fac Low Low Dat Turns Passed 9299 | . 299 576 517 1880 998 245 2087 436 1972 289 Spaces Moved 4466 | 1 107 233 314 899 363 94 676 385 1216 178 Core 30 | . . . . . . . 30 . . . Treads 1536 | . . 1 . 724 363 94 331 . 1 22 Legs 136 | 1 107 24 . . . . 4 . . . Wheels 2764 | . . 208 314 175 . . 311 385 1215 156 Hover . | . . . . . . . . . . . Flight . | . . . . . . . . . . . Fastest Speed 50 | 120 120 130 145 120 237 155 50 108 108 135 Average Speed 157 | 120 180 151 145 152 237 170 195 112 135 142 Slowest Speed 2100 | 120 260 260 145 237 237 238 2100 120 465 215 Overloaded Moves . | . . . . . . . . . . . Propulsion Burnouts . | . . . . . . . . . . . Robots Hopped . | . . . . . . . . . . . Cave-ins Triggered . | . . . . . . . . . . . Exploration Rate (%) 50 | 2 28 34 72 78 15 74 23 58 90 78 Regions Visited 10 Branch Regions 4 Pre-discovered Areas 30 | . . . 2 . . . . . 1 27 Known Exits Taken 4 | . . 1 . . . . 1 1 1 . Unknown Exits Taken 4 | 1 1 . 1 1 . . . . . . Scrap Searched 17 | . . . 3 . . . . 2 12 . Spaces Dug 9 | . . . . . . . 3 . 6 . Terrain Destroyed 448 | . . . 48 90 . 199 81 . 30 . Melee 3 | . . . . . . . 3 . . . Projectile 17 | . . . . 1 . . 9 . 7 . AOE 428 | . . . 48 89 . 199 69 . 23 . Terrain Rammed . | . . . . . . . . . . . Walls Destroyed . | . . . . . . . . . . . Machines Disabled . | . . . . . . . . . . . Actions | -11 -10 -9 -9 -8 -7 -7 -7 -7 -7 -7 --------- Run | Scr Mat Mat Min Mat Fac Was Fac Low Low Dat Total 5860 | . 168 343 348 1222 454 149 1126 388 1454 208 Wait 355 | . 29 8 11 54 36 10 76 . 130 1 Move 4457 | . 106 232 313 898 363 93 675 384 1215 178 Hop . | . . . . . . . . . . . Pick Up 183 | . 2 21 2 53 11 2 69 1 18 4 Fast Attach 44 | . 1 4 . 11 . 2 19 . 5 2 Attach 98 | . . 11 1 23 3 10 34 1 8 7 Detach 22 | . . 1 . . . 4 17 . . . Swap 84 | . 1 2 4 18 9 2 28 2 10 8 Drop 117 | . 1 5 . 41 5 4 37 . 18 6 Fire 456 | . 25 57 17 115 23 22 159 . 38 . Melee 7 | . . . . . 2 . 3 . . 2 Ram 2 | . . 1 . . . . 1 . . . Kick 3 | . 3 . . . . . . . . . Crush 24 | . . 1 . 9 2 . . . 12 . Escape Stasis 8 | . . . . . . . 8 . . . Rewire . | . . . . . . . . . . . Trap . | . . . . . . . . . . . Miscellaneous . | . . . . . . . . . . . Route ------- -11/Scrapyard -10/Materials -9/Materials -9/Mines -8/Materials (discovered 2 exits: *Fac x2) -7/Factory -7/Waste -7/Factory (discovered 3 exits: Sto / *Low x2) -7/Lower Caves -7/Lower Caves (discovered 2 exits: *Dat / *Fac) -7/Data Miner (discovered 1 exit: *Pro) History --------- Turn | Location | Event 1 | -11/Scrapyard | Discovered new exit (range 0) 1 | -11/Scrapyard | Entered Materials 274 | -10/Materials | Discovered new exit (range 11) 300 | -10/Materials | Entered another Materials area 300 | -9/Materials | Evolved 2 slots: Propulsion x1, Utility x1 315 | -9/Materials | Build established: Mutant 521 | -9/Materials | Destroyed 7 combat bots 528 | -9/Materials | Lost 3 parts (1p1n1u) 725 | -9/Materials | Identified exit to Mines 876 | -9/Materials | Lost 3 parts (2u1w) 876 | -9/Materials | Entered Mines 926 | -9/Mines | Learned Materials trap positions 934 | -9/Mines | Build established: Scavenger-Mutant 1030 | -9/Mines | Learned location of Recycling (-7) 1212 | -9/Mines | Learned location of Zion (-6) 1234 | -9/Mines | Build established: Mutant 1349 | -9/Mines | Discovered new exit (range 15) 1393 | -9/Mines | Entered Materials 1393 | -8/Materials | Evolved 2 slots: Propulsion x1, Utility x1 1394 | -8/Materials | Loaded intel: 17 trap records 1781 | -8/Materials | Build established: Scavenger-Mutant 2288 | -8/Materials | Discovered new exit (range 10) 2357 | -8/Materials | Core integrity fell below 50% 2399 | -8/Materials | Lost 16 parts (1p4n5u6w) 2400 | -8/Materials | Destroyed 13 combat bots 2563 | -8/Materials | Discovered new exit (range 16) 3273 | -8/Materials | Entered Factory 3273 | -7/Factory | Evolved 2 slots: Utility x2 3933 | -7/Factory | Build established: Mutant 4271 | -7/Factory | Sucked down chute 4271 | -7/Factory | Entered Waste 4272 | -7/Waste | Met a frightened Derelict 4286 | -7/Waste | EMP discharged 4290 | -7/Waste | Spotted C-40 Crusher 4292 | -7/Waste | Destroyed C-40 Crusher 4294 | -7/Waste | Spotted C-40 Crusher 4312 | -7/Waste | Destroyed C-40 Crusher 4329 | -7/Waste | Spotted C-40 Crusher 4332 | -7/Waste | Spotted C-40 Crusher 4341 | -7/Waste | Spotted C-40 Crusher 4344 | -7/Waste | Destroyed C-40 Crusher 4356 | -7/Waste | Crushed by Compactor (1 part destroyed, 2 dropped) 4359 | -7/Waste | Crushed by Compactor (1 part destroyed) 4362 | -7/Waste | Crushed by Compactor (1 part destroyed, 1 dropped) 4368 | -7/Waste | Crushed by Compactor (1 part destroyed) 4371 | -7/Waste | Crushed by Compactor (1 part destroyed, 1 dropped) 4386 | -7/Waste | EMP discharged 4400 | -7/Waste | Crushed by Compactor (1 part destroyed) 4403 | -7/Waste | Crushed by Compactor (1 part destroyed, 1 dropped) 4434 | -7/Waste | Lost 9 parts (1p6n2w) 4486 | -7/Waste | EMP discharged 4486 | -7/Waste | System corruption reached 10% 4491 | -7/Waste | Discovered new exit (range 15) 4514 | -7/Waste | Identified exit to Factory 4516 | -7/Waste | Entered Factory 4831 | -7/Factory | Build established: Scavenger-Mutant 4961 | -7/Factory | Identified exit to Storage 4961 | -7/Factory | Identified exit to Lower Caves 5194 | -7/Factory | Allied Derelicts emerged from ambush trap array 5337 | -7/Factory | Garrison activated, responded to threat 5357 | -7/Factory | Fabricated Huge Storage Unit? 5588 | -7/Factory | Core integrity fell below 50% 5675 | -7/Factory | Garrison activated, responded to threat 5704 | -7/Factory | Cargo convoy interrupted 5754 | -7/Factory | Destroyed 7 combat bots 5784 | -7/Factory | Garrison activated, responded to threat 5980 | -7/Factory | Lost 3 parts (1n1u1w) 6181 | -7/Factory | Build established: Mutant 6516 | -7/Factory | First assault squad dispatched 6583 | -7/Factory | Build established: Scavenger-Mutant 6603 | -7/Factory | Entered Lower Caves 6657 | -7/Lower Caves | Spotted B-75 Beast 6784 | -7/Lower Caves | Encountered a Warlord checkpoint 6976 | -7/Lower Caves | Discovered new exit (range 11) 6986 | -7/Lower Caves | Identified exit to Lower Caves 7039 | -7/Lower Caves | Entered another Lower Caves area 7039 | -7/Lower Caves | Spotted B-75 Beast 7083 | -7/Lower Caves | ME-RLN showed up to help 7085 | -7/Lower Caves | ME-RLN revealed a hidden path 7098 | -7/Lower Caves | Identified exit to Factory 7266 | -7/Lower Caves | Destroyed B-75 Beast 7414 | -7/Lower Caves | Build established: Mutant 8090 | -7/Lower Caves | Build established: Scavenger-Mutant 8794 | -7/Lower Caves | Learned 12 Factory zone layouts 9002 | -7/Lower Caves | Discovered new exit (range 7) 9010 | -7/Lower Caves | Identified exit to Data Miner 9011 | -7/Lower Caves | Entered Data Miner 9012 | -7/Data Miner | Discovered new exit (range 6) 9038 | -7/Data Miner | Met Data Miner 9064 | -7/Data Miner | Learned location of Section 7 (-2) 9064 | -7/Data Miner | Acquired the access code to Warlord's prototype stash 9088 | -7/Data Miner | Received God Mode back door access code from Data Miner 9174 | -7/Data Miner | Identified exit to Proximity Caves 9232 | -7/Data Miner | Destroyed Data Miner 9234 | -7/Data Miner | Interfaced with the Data Conduit 9240 | -7/Data Miner | Found Prototype Hackware 9244 | -7/Data Miner | Found Prototype Hackware 9247 | -7/Data Miner | Found Prototype Hackware 9295 | -7/Data Miner | Core integrity fell below 20% 9300 | -7/Data Miner | Destroyed by Enhanced Grunt with Neutron Cannon Last Messages --------------- 09240_ Acquired Prototype Hackware. 09246_ Dropped Gauss Rifle. 09247_ Acquired Prototype Hackware. 09250_ System corrupted: Energy discharge (-82). 09268_ System corrupted: Energy discharge (-54). 09268_ Imp. Medium Treads destroyed. 09271_ Wheel destroyed. 09274_ Kinecellerator destroyed. 09281_ Lyr. Medium Armor Plating destroyed. 09283_ System corrupted: Energy discharge (-63). 09283_ Prc. Assault Rifle destroyed. 09285_ Com. Wheel destroyed. 09291_ Chain reaction triggered in Antimatter Reactor. 09291_ Imp. Medium Treads destroyed. 09291_ Imp. Light Armor Plating destroyed. 09293_ Imp. Medium Armor Plating destroyed. 09293_ Wheel destroyed. 09295_ Enh. Autogun destroyed. 09297_ Med. Reactive Plating destroyed. 09297_ Imp. Signal Interpreter destroyed. Map ----- +----------------------------------------------------+ | | | | | | | | | | | | | | | | | | | | | | | | | | | | | | | | | | | | | ?????????????????????????????????????????? | | ?????????????????????????????????????????? | | ?????????????????????????????????????????? | | ?????????????????????????????????????????? | | ??????????????????????#####??####????????? | | #############????######;;;#### #????????? | | """"""""""""###### ; # ;;; #????????? | | """"" """"""# ; ; @; > ##????????? | | """"" g g ######???? | | ""! g #???? | | "" ! g #???? | | "][= #???? | | " * ##???? | | "" """"""""""""""""#####????? | | """ " ""###############????????? | | """ """" ###??????????????????????? | | """"" "###"#????????????????????????? | | ####"## "#?###????????????????????????? | | ???#"### "#????????????????????????????? | | ???#"### "#????????????????????????????? | | ???#"## "#????????????????????????????? | | ????"## "#????????????????????????????? | | ?????# "#????????????????????????????? | | ?????### "#????????????????????????????? | | ???????# "##???????????????????????????? | | ??????## ""#???????????????????????????? | | ???#?## ""#???????????????????????????? | | ??##"#"X ""#???????????????????????????? | | ?"""""" "####????????????????????????? | | ?#""""" X"""""????????????????????????? | | ?###"#"X "##"#????????????????????????? | | ???#"## X""""#????????????????????????? | +----------------------------------------------------+ Best States ------------- Heat Dissipation 61 Energy Generation 18 Energy Capacity 310 Matter Stores 300 Matter Capacity 300 Sight Range 16 Robot Scan Range 15 Terrain Scan Density 10 Corruption Block 8 Armor Coverage 750 Evasion (%) 55 Targeting Accuracy 6 Recoil Reduction 4 Kinecelleration 30 Authchip Count 1 Item Schematics ----------------- Huge Storage Unit | -8/Materials | Hacked Combat Drone Bay | -7/Data Miner | Free Lgt. Regenerative Plating | -7/Data Miner | Free Cld. Aerolev Unit | -7/Data Miner | Free Gravity Neutralizer | -7/Data Miner | Free Force Rifle | -7/Data Miner | Free Linear Gravjet | -7/Data Miner | Free Adv. Cooling System | -7/Data Miner | Free Tesla Rifle | -7/Data Miner | Free Imp. Hacking Suite | -7/Data Miner | Free Robot Schematics ------------------ L-41 Fighter | -7/Data Miner | Free R-10 Processor | -7/Data Miner | Free S-27 Virus | -7/Data Miner | Free H-66 Slayer | -7/Data Miner | Free C-35 Carver | -7/Data Miner | Free Fabricated ------------ Huge Storage Unit | x1 | -7/Factory Alien Tech Used ----------------- None Achievements -------------- None Challenges ------------ None Game ------ Seed TiamatCoolingChronowheel Manual? 0 Play Time 01:56:06 Cumulative 255.8 hours Start 2022.05.05 @ 19:43:20 End 2022.05.05 @ 22:14:18 Sessions 1 Manual Loads 0 Difficulty Rogue Special Mode None Game No. 79 Rogue 62 Adventurer 17 Explorer 0 Win Type - Total 14 Types 8/0/5/1/0/0/0/0/0 Lore% 77 Gallery% 81 Achievement% 70 Wizard Run 0 Options --------- ASCII 0 Keyboard 0 Movement Arrows Keybinds 0 Fullscreen 1 Font 28/Dina Map View 72x54 Tactical HUD 1 Map Filters NONE Filters NONE Steam 1 RUN: cfeeeac3-3b47-404a-87b7-10dbe6a59041